bitfinex/quotes_ETHUSD_20250602
["timestamp","ask_amount","ask_price","bid_price","bid_amount"]
[1748875126228,8.04939581,2530.9,2530.5,4.462]
[1748875126433,12.00062714,2530.9,2530.5,4.462]
[1748875126616,11.95123133,2530.9,2530.5,4.462]
[1748875126804,0.32991836,2530.8,2530.5,4.462]
[1748875126994,0.28076645,2530.7,2530.3,4.48203547]
[1748875127336,0.28076645,2530.7,2530.6,5.771]
[1748875127543,4.23224232,2530.7,2530.6,5.771]
[1748875127847,4.23224232,2530.7,2530.6,1.308]
[1748875128046,0.28076645,2530.7,2530.6,4.463]
[1748875128220,4.23224232,2530.7,2530.6,4.463]
[1748875128413,4.28163896,2530.7,2530.6,4.463]
[1748875129048,0.33016309,2530.7,2530.6,4.463]
[1748875129344,0.28076645,2530.7,2530.6,4.463]
[1748875129640,0.28076645,2530.7,2530.6,5.77]
[1748875130645,0.28076645,2530.7,2530.6,9.72163202]
[1748875130854,0.28076645,2530.7,2530.6,5.77]
[1748875131146,0.28076645,2530.7,2530.6,9.72163202]
[1748875131345,0.28076645,2530.7,2530.3,3.95199934]
[1748875131522,0.28076645,2530.7,2530.5,3.95176919]
[1748875131839,0.28076645,2530.7,2530.4,3.95181968]
[1748875132047,0.28076645,2530.7,2530.5,5.771]
[1748875132341,0.28076645,2530.7,2530.5,9.72269867]
[1748875132545,0.28076645,2530.7,2530.2,0.818]
[1748875132732,0.28076645,2530.7,2530.1,0.02]
[1748875132733,3.95225673,2530.2,2530.1,0.02]
[1748875132935,0.55,2530.0,2529.1,0.7862]
[1748875133245,3.95327362,2529.6,2529.1,0.7862]
[1748875133548,4.00271232,2529.6,2529.1,0.7862]
[1748875133756,3.95381938,2529.2,2529.1,0.02]
[1748875133911,4.00321602,2529.2,2529.1,0.02]
[1748875134420,0.04939664,2529.2,2529.1,0.02]
[1748875134617,3.95381938,2529.2,2529.1,0.02]
[1748875134860,4.00321602,2529.2,2529.1,0.02]
[1748875135760,12.00321602,2529.2,2529.1,0.02]
[1748875136070,11.95381938,2529.2,2529.1,0.02]
[1748875136267,12.50381938,2529.2,2529.1,0.02]
[1748875136937,13.31471938,2529.2,2529.1,0.02]
[1748875137356,12.76471938,2529.2,2529.1,0.02]
[1748875137558,8.0,2529.2,2529.1,0.02]
[1748875137742,0.19211814,2530.2,2529.1,3.97392773]
[1748875137743,9.98437267,2530.0,2529.1,3.97392773]
[1748875138071,8.04939664,2529.9,2529.2,5.772]
[1748875138275,8.0,2529.5,2529.2,5.772]
[1748875138435,0.04939664,2529.4,2529.2,5.772]
[1748875139071,0.04939664,2529.4,2529.2,9.72572935]
[1748875139235,0.33004556,2529.3,2529.2,5.772]
[1748875139937,0.33004556,2529.3,2529.2,9.72581938]
[1748875140447,0.33004556,2529.3,2529.2,6.5514]
[1748875140649,0.33004556,2529.3,2529.2,5.772]
[1748875141842,1.1563422,2529.3,2529.1,0.02]
[1748875142049,0.33004556,2529.3,2529.1,3.97389302]
[1748875142343,0.33004556,2529.3,2529.2,4.464]
[1748875142693,3.95381938,2529.2,2529.1,0.02]
[1748875142851,4.33301149,2529.2,2529.1,1.329]
[1748875143051,4.33301149,2529.2,2529.1,0.02]
[1748875143052,4.28361485,2529.2,2529.1,0.02]
[1748875143288,4.28361485,2529.2,2529.1,5.792]
[1748875143822,4.33301149,2529.2,2529.1,1.329]
[1748875143949,22.05108416,2529.2,2529.1,0.02]
[1748875144152,22.81748752,2529.2,2529.1,0.02]
[1748875145646,3.95491398,2528.5,2528.4,5.767]
[1748875145874,11.9550704,2528.4,2528.3,1.304]
[1748875146055,11.9550704,2528.4,2528.1,0.02]
[1748875146056,8.0,2528.4,2528.1,0.02]
[1748875146270,8.0,2528.4,2528.2,5.767]
[1748875146271,4.00477453,2528.3,2528.2,5.767]
[1748875146687,3.95538327,2528.2,2528.1,0.02]
[1748875146854,0.04939664,2528.3,2528.1,5.787]
[1748875147589,0.04939664,2528.3,2528.1,9.74252492]
[1748875147743,11.95519319,2528.4,2528.1,5.787]
[1748875148184,11.95507052,2528.4,2528.1,5.787]
[1748875148484,8.0,2528.4,2528.1,5.787]
[1748875148687,3.95538327,2528.2,2528.1,0.02]
[1748875148982,8.04939664,2528.4,2528.1,5.787]
[1748875148983,4.00469234,2528.3,2528.1,5.787]
[1748875149147,4.00462769,2528.3,2528.2,4.463]
[1748875149347,4.00462769,2528.3,2528.1,0.02]
[1748875149348,4.00465247,2528.3,2528.1,0.02]
[1748875149615,0.04939664,2528.3,2528.2,5.767]
[1748875149757,4.00462347,2528.3,2528.2,5.767]
[1748875150098,0.04939664,2528.3,2528.2,5.767]
[1748875150615,8.0,2528.7,2528.3,3.95514841]
[1748875150771,0.33004556,2528.6,2528.3,3.95514841]
[1748875151128,0.33004556,2528.6,2528.5,3.95491398]
[1748875151387,0.33004556,2528.6,2528.5,5.767]
[1748875151616,0.33004556,2528.6,2528.5,4.463]
[1748875151888,4.28480313,2528.6,2528.5,4.463]
[1748875152109,4.28480313,2528.6,2528.4,1.304]
[1748875152251,12.00431062,2528.5,2528.4,1.304]
[1748875152450,3.9552511,2528.3,2528.1,0.02]
[1748875152653,11.9552511,2528.3,2528.2,5.767]
[1748875152853,11.9552511,2528.3,2528.2,1.304]
[1748875153208,11.9552511,2528.3,2528.2,5.767]
[1748875153510,8.0,2528.3,2528.2,5.767]
[1748875153898,8.04939664,2528.3,2528.2,5.767]
[1748875154101,8.0,2528.3,2528.2,5.767]
[1748875155005,8.33004556,2528.3,2528.2,5.767]
[1748875155421,0.33004556,2528.3,2528.2,5.767]
[1748875157883,0.33004556,2528.3,2528.1,0.02]
[1748875158114,3.95538327,2528.2,2528.1,0.02]
[1748875158276,3.95538327,2528.2,2528.1,5.787]
[1748875158780,3.95538327,2528.2,2528.1,1.325]
[1748875159099,3.95538327,2528.2,2528.1,5.787]
[1748875159680,4.00470618,2528.3,2528.1,1.325]
[1748875160031,4.00470618,2528.3,2528.1,5.787]
[1748875160239,3.95538327,2528.2,2528.1,1.325]
[1748875160396,3.95538327,2528.2,2528.1,5.787]
[1748875160591,11.95538327,2528.2,2528.1,1.325]
[1748875161123,12.28517874,2528.2,2528.1,1.325]
[1748875161278,20.89189153,2528.2,2528.1,0.02]
[1748875161915,21.44189153,2528.2,2528.1,0.02]
[1748875162431,20.89189153,2528.2,2528.1,0.02]
[1748875162584,21.44189153,2528.2,2528.1,0.02]
[1748875163316,21.59523969,2528.2,2528.1,0.02]
[1748875164230,21.59523969,2528.2,2527.2,8.538]
[1748875164231,3.95679183,2527.3,2527.2,8.538]
[1748875164403,3.95679183,2527.3,2527.1,0.02]
[1748875164731,12.76640599,2527.2,2527.1,0.02]
[1748875164903,12.71700935,2527.2,2527.1,0.02]
[1748875165239,11.9569484,2527.2,2527.1,0.02]
[1748875166339,12.28674387,2527.2,2527.1,0.02]
[1748875166634,12.28674387,2527.2,2527.1,4.481]
[1748875166804,12.28674387,2527.2,2527.1,0.02]
[1748875167133,0.32979547,2527.2,2527.1,0.02]
[1748875167907,0.32979547,2527.2,2527.1,4.48]
[1748875168494,0.32979547,2527.2,2527.1,0.02]
[1748875168739,12.33614051,2527.2,2527.1,0.02]
[1748875168940,12.28674387,2527.2,2527.1,0.02]
[1748875171103,12.83674387,2527.2,2527.1,0.02]
[1748875171918,12.83674387,2527.2,2526.1,0.8185]
[1748875171919,3.95839314,2526.3,2526.1,0.8185]
[1748875172117,13.28930498,2527.1,2526.1,0.8185]
[1748875172118,11.95805768,2526.5,2526.1,0.02]
[1748875172318,0.04939664,2526.4,2526.1,0.02]
[1748875172549,11.95794747,2526.6,2526.2,4.46]
[1748875172550,0.04939664,2526.5,2526.2,4.46]
[1748875172754,11.95796642,2526.6,2526.2,8.41849031]
[1748875172755,8.0,2526.6,2526.2,8.41849031]
[1748875172909,0.04939664,2526.6,2526.3,5.26332854]
[1748875173254,0.04939664,2526.7,2526.3,5.26325375]
[1748875173412,0.32979547,2526.6,2526.4,3.95809831]
[1748875173613,0.32979547,2526.6,2526.3,2.0807]
[1748875173836,0.37919211,2526.6,2526.3,0.7757]
[1748875174007,0.37919211,2526.6,2526.4,5.765]
[1748875174208,0.32979547,2526.6,2526.4,5.765]
[1748875174946,0.32979547,2526.6,2526.5,3.95804472]
[1748875175748,0.32979547,2526.6,2526.4,9.72311793]
[1748875176282,0.32979547,2526.6,2526.5,3.95804472]
[1748875176478,0.32979547,2526.6,2526.5,3.99761949]
[1748875177172,0.32979547,2526.6,2526.5,3.95804472]
[1748875177337,0.32979547,2526.6,2526.5,3.99762104]
[1748875178187,11.95703467,2527.2,2526.7,3.95769494]
[1748875178188,8.0,2527.2,2526.7,3.95769494]
[1748875178357,8.0,2527.2,2526.8,4.46]
[1748875178358,3.95712356,2527.1,2526.8,4.46]
[1748875178554,0.04939664,2527.1,2526.8,4.46]
[1748875178880,8.04939664,2527.1,2526.8,4.46]
[1748875179182,12.00659871,2527.1,2526.8,4.46]
[1748875179344,8.33004556,2527.1,2526.8,4.46]
[1748875180033,12.28720611,2527.1,2526.8,4.46]
[1748875180237,0.33004556,2527.1,2526.8,4.46]
[1748875180696,0.33004556,2527.1,2527.0,3.95726157]
[1748875180856,0.33004556,2527.1,2526.9,0.7615]
[1748875180857,0.33004556,2527.1,2526.9,4.7188446]
[1748875181173,0.33004556,2527.1,2527.0,3.99683325]
[1748875181390,0.33004556,2527.1,2526.9,0.7615]
[1748875181794,0.3794422,2527.1,2526.9,0.7615]
[1748875181995,0.3794422,2527.1,2527.0,4.459]
[1748875181996,4.33655446,2527.1,2527.0,4.459]
[1748875182287,0.3794422,2527.1,2527.0,4.459]
[1748875182509,8.76006095,2527.2,2527.0,4.459]
[1748875182892,4.71293506,2527.5,2527.0,8.41617645]
[1748875183064,8.0,2527.4,2527.1,3.95708665]
[1748875183268,8.0,2527.4,2527.2,3.95684203]
[1748875183269,0.04939664,2527.4,2527.2,3.95684203]
[1748875183492,16.60856213,2527.6,2527.3,4.459]
[1748875183710,8.04939664,2527.5,2527.3,4.459]
[1748875183929,0.33004556,2527.4,2527.3,8.41579025]
[1748875184271,0.33004556,2527.4,2527.3,5.759]
[1748875186720,4.28668083,2527.4,2527.3,1.301]
[1748875186876,0.3794422,2527.4,2527.3,5.758]
[1748875187073,0.33004556,2527.4,2527.3,5.758]
[1748875187592,4.33614386,2527.4,2527.3,5.758]
[1748875187973,0.3794422,2527.4,2527.3,5.758]
[1748875188721,4.33609956,2527.4,2527.3,1.301]
[1748875188925,4.33609956,2527.4,2527.3,5.758]
[1748875189514,4.33609956,2527.4,2527.0,0.8217]
[1748875189711,3.95687575,2527.3,2527.1,5.757]
[1748875189911,3.95687575,2527.3,2527.0,0.8217]
[1748875189912,11.9571795,2527.1,2527.0,1.301]
[1748875190223,3.95729176,2527.0,2526.8,1.301]
[1748875190426,12.61537695,2526.9,2526.8,1.301]
[1748875190626,12.56598031,2526.9,2526.8,5.757]
[1748875190792,8.60856213,2526.9,2526.8,5.757]
[1748875190994,8.60856213,2526.9,2526.5,3.95803638]
[1748875191213,8.60856213,2526.9,2526.6,0.191]
[1748875191214,12.00704914,2526.8,2526.6,0.191]
[1748875191416,11.9576525,2526.8,2526.6,4.647]
[1748875191620,8.0,2526.8,2526.6,4.647]
[1748875191818,8.04939664,2526.8,2526.6,4.647]
[1748875192002,0.04939664,2526.8,2526.6,4.647]
[1748875192219,0.04939664,2526.9,2526.6,8.60481976]
[1748875192543,0.04939664,2526.9,2526.7,3.95772771]
[1748875192887,0.04939664,2526.9,2526.6,8.60480511]
[1748875193093,0.04939664,2527.0,2526.7,3.95771086]
[1748875193290,4.33672003,2527.0,2526.6,8.60477827]
[1748875193694,4.33672003,2527.0,2526.6,8.60484428]
[1748875193921,0.3794422,2527.0,2526.6,8.60484428]
[1748875194134,4.33670741,2527.0,2526.6,4.647]
[1748875194427,4.33679411,2527.0,2526.6,4.647]
[1748875194633,4.33679411,2527.0,2526.6,8.60486784]
[1748875194934,3.95745001,2526.9,2526.6,4.647]
[1748875195127,0.04939664,2526.8,2526.6,4.647]
[1748875195429,0.04939664,2526.8,2526.6,0.191]
[1748875195601,3.95773142,2526.7,2526.6,0.191]
[1748875195801,3.95773142,2526.7,2526.6,4.646]
[1748875196031,3.95773142,2526.7,2526.6,1.301]
[1748875196235,4.72483142,2526.7,2526.6,5.756]
[1748875196440,5.05487698,2526.7,2526.6,1.301]
[1748875196641,3.95790084,2526.6,2526.2,3.95849115]
[1748875196855,8.93860769,2526.6,2526.5,1.301]
[1748875197210,0.33004556,2526.6,2526.5,4.455]
[1748875197405,0.33004556,2526.6,2526.4,1.301]
[1748875197746,12.56660685,2526.5,2526.4,1.301]
[1748875198041,12.56660685,2526.5,2526.4,5.755]
[1748875198341,12.89665241,2526.5,2526.4,5.755]
[1748875199547,8.93860769,2526.5,2526.4,5.755]
[1748875199718,12.89665241,2526.5,2526.4,1.301]
[1748875199930,12.89665241,2526.5,2526.4,5.755]
[1748875200308,20.89665241,2526.5,2526.4,0.191]
[1748875200509,3.95844007,2526.3,2526.2,1.301]
[1748875200759,3.95844007,2526.3,2526.2,5.755]
[1748875201058,3.95844007,2526.3,2526.2,1.301]
[1748875201262,4.77674007,2526.3,2526.2,5.755]
[1748875201551,3.95844007,2526.3,2526.2,5.755]
[1748875201855,0.33004556,2526.3,2526.2,10.47351476]
[1748875202065,0.33004556,2526.3,2526.2,11.91873296]
[1748875202345,0.33004556,2526.3,2526.2,0.76]
[1748875202648,0.33004556,2526.3,2526.2,5.754]
[1748875202952,4.28844492,2526.3,2526.2,1.301]
[1748875203156,0.33004556,2526.3,2526.2,5.754]
[1748875204049,0.33004556,2526.3,2526.2,8.60251476]
[1748875204251,0.06188354,2526.3,2526.2,10.62458544]
[1748875204463,0.8183,2527.6,2527.0,0.76]
[1748875204750,0.8183,2527.6,2527.1,5.754]
[1748875204751,0.04939664,2527.5,2527.1,5.754]
[1748875204951,8.60856213,2527.4,2527.1,1.301]
[1748875205153,8.60856213,2527.4,2527.2,4.453]
[1748875205341,0.04939664,2527.3,2527.2,4.453]
[1748875205741,12.00626565,2527.3,2527.2,5.749]
[1748875205959,3.95641573,2527.6,2527.2,5.749]
[1748875206116,0.04939664,2527.5,2527.2,4.639]
[1748875206457,8.0,2527.5,2527.3,0.7714]
[1748875206757,3.95586969,2527.9,2527.3,0.7714]
[1748875206911,20.56504086,2527.5,2527.4,5.748]
[1748875207118,20.56504086,2527.5,2527.0,0.8321]
[1748875207119,3.95687591,2527.3,2527.2,1.296]
[1748875207319,3.95671893,2527.4,2527.2,5.748]
[1748875207515,16.60856213,2527.5,2527.2,5.748]
[1748875207753,8.0,2527.5,2527.2,5.748]
[1748875208021,0.8253,2528.3,2527.3,0.86676503]
[1748875208367,8.0,2527.8,2527.4,5.748]
[1748875208518,0.04939664,2528.0,2527.5,3.95639053]
[1748875208720,4.005197,2528.0,2527.5,3.95639053]
[1748875208922,4.005197,2528.0,2527.4,5.748]
[1748875208923,11.9558618,2527.9,2527.4,9.70456848]
[1748875209316,3.95600931,2527.8,2527.4,5.748]
[1748875209955,0.04939664,2527.9,2527.5,3.95644374]
[1748875210327,8.0,2528.0,2527.5,0.03956193]
[1748875210534,8.0,2528.0,2527.6,3.95624066]
[1748875210729,8.60856213,2528.1,2527.7,4.45]
[1748875210730,3.95556395,2528.1,2527.7,4.45]
[1748875210959,3.95580986,2528.0,2527.7,4.45]
[1748875211265,8.60856213,2528.1,2527.7,4.45]
[1748875211266,12.56415505,2528.1,2527.7,4.45]
[1748875211625,8.60856213,2528.1,2527.7,8.40610516]
[1748875211826,12.56412669,2528.1,2527.7,4.45]
[1748875212418,8.60856213,2528.1,2527.7,4.45]
[1748875212623,11.95532226,2528.3,2527.8,4.7779264]
[1748875212847,11.95530825,2528.3,2527.8,4.77793133]
[1748875213046,4.00485239,2528.2,2527.9,5.745]
[1748875213366,8.0,2528.3,2527.9,5.745]
[1748875213560,3.95546266,2528.2,2527.9,5.745]
[1748875213723,4.0048593,2528.2,2527.9,5.745]
[1748875213950,8.0,2528.3,2527.9,9.70084319]
[1748875214146,8.0,2528.3,2528.0,3.95569255]
[1748875214355,8.0,2528.3,2527.9,5.745]
[1748875214583,3.95448624,2528.8,2528.5,0.7998]
[1748875214910,4.00406179,2528.7,2528.6,5.744]
[1748875215054,12.00406179,2528.7,2528.6,4.449]
[1748875215251,3.95448196,2528.8,2528.6,4.449]
[1748875215603,4.00399781,2528.7,2528.6,4.449]
[1748875215743,12.00399781,2528.7,2528.6,4.449]
[1748875215942,11.95460117,2528.7,2528.6,4.449]
[1748875217617,3.95450822,2528.8,2528.2,0.7998]
[1748875217794,3.95450822,2528.8,2528.2,1.295]
[1748875217795,16.60856213,2528.3,2528.2,1.295]
[1748875217958,8.0,2528.3,2528.2,9.69738327]
[1748875218501,4.00417191,2528.6,2528.2,5.742]
[1748875218676,8.04939664,2528.6,2528.2,5.25037233]
[1748875218883,8.04939664,2528.6,2528.3,4.447]
[1748875219203,8.0,2528.8,2528.4,4.78500076]
[1748875219499,8.02,2528.9,2528.5,3.95482996]
[1748875219697,8.02,2528.9,2528.6,8.40168358]
[1748875219698,0.02,2528.9,2528.6,8.40168358]
[1748875219864,11.97430175,2528.9,2528.6,4.447]
[1748875220260,12.56329666,2528.7,2528.6,1.295]
[1748875220465,8.60856213,2528.7,2528.6,5.741]
[1748875220660,8.02,2528.9,2528.6,5.741]
[1748875220857,8.06939664,2528.9,2528.6,5.741]
[1748875221062,12.02377904,2528.9,2528.6,5.741]
[1748875221302,3.95453552,2528.8,2528.6,5.741]
[1748875222065,11.97440477,2528.9,2528.6,5.741]
[1748875222303,0.02,2528.9,2528.6,5.741]
[1748875222522,0.02,2528.9,2528.6,9.69568055]
[1748875222661,0.02,2528.9,2528.6,5.741]
[1748875222861,0.02,2528.9,2528.7,3.95453301]
[1748875223067,0.02,2528.9,2528.8,4.82538668]
[1748875223304,0.02,2528.9,2528.8,4.78584479]
[1748875223882,0.02,2528.9,2528.8,4.82538155]
[1748875224715,0.02,2528.9,2528.8,4.78584479]
[1748875225016,0.02,2528.9,2528.8,6.5714]
[1748875225792,0.02,2528.9,2528.8,10.52584479]
[1748875225982,0.02,2528.9,2528.8,6.5714]
[1748875226590,0.02,2528.9,2528.8,10.52584479]
[1748875226913,0.02,2528.9,2528.8,0.8314]
[1748875227117,12.58285055,2528.9,2528.5,0.757]
[1748875227321,12.58285055,2528.9,2528.6,5.738]
[1748875227629,12.58285055,2528.9,2528.6,1.295]
[1748875227630,3.95469564,2528.7,2528.6,1.295]
[1748875227791,12.582923,2528.9,2528.7,4.443]
[1748875228111,8.62856213,2528.9,2528.6,1.295]
[1748875228412,8.62856213,2528.9,2528.7,4.443]
[1748875228617,0.02,2528.9,2528.7,8.39750536]
[1748875228783,0.02,2528.9,2528.7,8.39755661]
[1748875229191,0.02,2528.9,2528.7,4.443]
[1748875230509,0.02,2528.9,2528.7,8.39759991]
[1748875231013,0.02,2528.9,2528.7,8.39751181]
[1748875231408,0.02,2528.9,2528.7,4.443]
[1748875231598,8.62856213,2528.9,2528.5,4.71188988]
[1748875231798,8.62856213,2528.9,2528.6,9.6907572]
[1748875232013,8.62856213,2528.9,2528.6,5.2497572]
[1748875232299,8.62856213,2528.9,2528.7,4.441]
[1748875232495,12.58291655,2528.9,2528.8,4.441]
[1748875232704,17.38676213,2528.9,2528.8,4.441]
[1748875232899,21.34111693,2528.9,2528.8,4.441]
[1748875234053,21.34111693,2528.9,2528.5,1.295]
[1748875234239,21.34111693,2528.9,2528.6,4.441]
[1748875234436,8.7782,2528.9,2528.6,4.441]
[1748875235042,8.02,2528.9,2528.6,8.39575398]
[1748875235250,8.02,2528.9,2528.7,3.95452063]
[1748875235251,0.02,2528.9,2528.7,3.95452063]
[1748875235455,0.02,2528.9,2528.8,3.95444479]
[1748875235756,0.02,2528.9,2528.7,4.75892063]
[1748875235757,0.02,2528.9,2528.7,0.8044]
[1748875235911,0.02,2528.9,2528.8,5.729]
[1748875236111,3.97428842,2528.9,2528.8,4.44]
[1748875236316,3.97436541,2528.9,2528.8,4.44]
[1748875236552,0.02,2528.9,2528.8,4.44]
[1748875237317,3.97428842,2528.9,2528.8,4.44]
[1748875237518,0.02,2528.9,2528.8,4.44]
[1748875239558,0.02,2528.9,2528.8,8.39444479]
[1748875240359,0.02,2528.9,2528.8,4.44]
[1748875240563,0.02,2528.9,2528.8,5.728]
[1748875241473,3.95444479,2528.8,2528.4,0.7592]
[1748875241653,4.00384143,2528.8,2528.7,1.289]
[1748875241858,4.00384143,2528.8,2528.6,1.289]
[1748875242874,4.0039253,2528.8,2528.6,1.289]
[1748875243172,8.04939664,2528.8,2528.7,4.438]
[1748875243468,8.0,2528.8,2528.7,4.438]
[1748875244041,0.02,2528.9,2528.8,3.95444479]
[1748875244441,0.02,2528.9,2528.8,3.99398385]
[1748875244761,0.02,2528.9,2528.8,3.95444479]
[1748875246370,0.02,2528.9,2528.8,3.99398387]
[1748875246574,0.02,2528.9,2528.8,3.95444479]
[1748875246739,0.02,2528.9,2528.8,5.43910771]
[1748875247166,0.02,2528.9,2528.8,6.24360771]
[1748875247371,0.02,2528.9,2528.8,6.20406862]
[1748875248253,0.02,2528.9,2528.8,11.92906862]
[1748875250790,0.02,2528.9,2528.8,20.47906862]
[1748875250971,0.06939664,2529.9,2528.8,20.47906862]
[1748875250972,0.02,2529.9,2529.8,4.77978165]
[1748875251287,0.02,2529.9,2529.8,10.50378165]
[1748875252691,0.02,2529.9,2529.8,4.77978165]
[1748875252861,0.02,2529.9,2529.8,10.50178165]
[1748875256495,0.02,2529.9,2529.8,6.06878165]
[1748875256783,0.02,2529.9,2529.8,11.50296063]
[1748875256990,0.02,2529.9,2529.8,11.50196063]
[1748875258209,0.02,2529.9,2529.8,5.719]
[1748875259008,0.02,2529.9,2529.8,9.67188165]
[1748875259362,0.02,2529.9,2529.8,5.719]
[1748875259567,0.02,2529.9,2529.8,9.67188165]
[1748875260096,0.02,2529.9,2529.8,10.42528165]
[1748875260407,0.02,2529.9,2529.8,11.8631118]
[1748875261503,0.02,2529.9,2529.8,9.67088165]
[1748875261799,0.02,2529.9,2529.8,10.43798165]
[1748875261960,0.02,2529.9,2529.8,10.98798165]
[1748875262285,0.02,2529.9,2529.8,4.71998165]
[1748875262599,0.02,2529.9,2529.8,10.43698165]
[1748875263024,0.02,2529.9,2529.8,11.8759818]
[1748875264506,0.02,2529.9,2529.8,12.4259818]
[1748875267002,0.02,2529.9,2529.8,25.1759818]
[1748875267693,0.02,2529.9,2529.8,25.1679818]
[1748875268226,0.02,2529.9,2529.8,20.1909818]
[1748875268522,0.02,2529.9,2529.8,24.6179818]
[1748875268819,0.02,2529.9,2529.8,3.48810015]
[1748875269025,0.02,2529.9,2529.8,9.66188165]
[1748875270027,0.02,2529.9,2529.8,10.45158165]
[1748875270188,0.02,2529.9,2529.8,4.74258165]
[1748875270411,0.02,2529.9,2529.8,9.66088165]
[1748875270750,1.02,2529.9,2529.8,9.66088165]
[1748875271124,1.02,2529.9,2529.8,11.09947259]
[1748875271848,1.02,2529.9,2529.8,5.39147259]
[1748875272026,1.02,2529.9,2529.8,11.09947259]
[1748875272725,1.02,2529.9,2529.8,5.39147259]
[1748875273047,1.02,2529.9,2529.7,4.425]
[1748875274645,2.02,2529.9,2529.7,4.425]
[1748875274850,2.02,2529.9,2529.7,8.37800816]
[1748875275050,2.02,2529.9,2529.7,8.37796918]
[1748875275914,2.02,2529.9,2529.7,4.425]
[1748875276112,5.97273614,2529.9,2529.8,4.424]
[1748875276318,2.02,2529.9,2529.6,1.282]
[1748875276567,2.02,2529.9,2529.7,4.424]
[1748875277054,0.7738,2529.8,2529.7,4.424]
[1748875277981,0.7738,2529.8,2529.6,1.282]
[1748875278143,0.7738,2529.8,2529.7,4.424]
[1748875278638,0.7738,2529.8,2529.6,1.282]
[1748875278846,0.7738,2529.8,2529.4,12.48943517]
[1748875278847,3.95335046,2529.5,2529.4,8.536]
[1748875279044,12.56191259,2529.5,2529.4,12.96]
[1748875279341,9.38236213,2529.8,2529.4,12.96]
[1748875279543,0.7738,2529.8,2529.5,3.95335046]
[1748875279741,0.7738,2529.8,2529.6,3.95311768]
[1748875279956,2.02,2529.9,2529.8,3.95288165]
[1748875280151,2.02,2529.9,2529.7,8.37694847]
[1748875280390,2.02,2529.9,2529.8,3.95288165]
[1748875282041,3.02,2529.9,2529.8,3.95288165]
[1748875283986,3.02,2529.9,2529.4,8.536]
[1748875284188,7.72870993,2529.9,2529.8,1.282]
[1748875284342,7.77810657,2529.9,2529.8,1.282]
[1748875284969,3.82529664,2529.9,2529.8,1.282]
[1748875285342,3.02,2529.9,2529.8,5.704]
[1748875285550,3.02,2529.9,2529.5,3.953286]
[1748875285781,3.02,2529.9,2529.6,1.282]
[1748875286083,3.02,2529.9,2529.6,5.704]
[1748875286290,3.02,2529.9,2529.7,4.422]
[1748875286689,6.97272636,2529.9,2529.7,4.422]
[1748875286852,3.02,2529.9,2529.7,4.422]
[1748875287588,4.02,2529.9,2529.7,4.422]
[1748875287788,7.97276103,2529.9,2529.7,4.422]
[1748875287987,4.02,2529.9,2529.7,4.422]
[1748875288192,7.97275002,2529.9,2529.6,1.282]
[1748875288393,7.97275002,2529.9,2529.7,4.421]
[1748875288604,4.02,2529.9,2529.7,4.421]
[1748875288956,7.97276062,2529.9,2529.7,4.421]
[1748875289265,4.02,2529.9,2529.8,3.95288165]
[1748875289780,4.02,2529.9,2529.8,6.1387956]
[1748875290159,4.02,2529.9,2529.8,6.09927026]
[1748875290468,4.02,2529.9,2529.8,6.6887917]
[1748875290851,4.02,2529.9,2529.8,23.29735383]
[1748875291053,3.33470556,2529.9,2529.8,23.25703239]
[1748875291253,3.27235785,2529.9,2529.8,23.25703239]
[1748875291490,0.02,2530.9,2530.8,4.77171974]
[1748875291758,0.02,2530.9,2530.8,10.47371974]
[1748875292488,0.02,2530.9,2530.8,11.02371974]
[1748875292689,0.02,2530.9,2530.8,14.05371974]
[1748875292896,0.02,2530.9,2530.8,18.47271974]
[1748875293189,0.02,2530.9,2530.8,20.71513658]
[1748875293487,0.02,2530.9,2530.8,12.71513658]
[1748875293855,0.02,2530.9,2530.8,8.29613658]
[1748875294054,0.02,2530.9,2530.8,10.47271974]
[1748875295193,0.02,2530.9,2530.8,11.02271974]
[1748875295394,0.02,2530.9,2530.8,10.47271974]
[1748875296089,0.02,2530.9,2530.8,9.65031974]
[1748875296460,0.02,2530.9,2530.8,10.46281974]
[1748875296662,0.02,2530.9,2530.8,11.94368111]
[1748875297371,0.02,2530.9,2530.8,7.52668111]
[1748875297594,0.02,2530.9,2530.8,5.23331974]
[1748875297771,0.02,2530.9,2530.8,9.64931974]
[1748875298681,1.02,2530.9,2530.8,5.698]
[1748875298998,1.02,2530.9,2530.8,9.64931974]
[1748875300574,1.02,2530.9,2530.8,9.64331974]
[1748875301174,2.02,2530.9,2530.8,12.23806815]
[1748875301388,2.02,2530.9,2530.8,12.78806815]
[1748875302172,2.02,2530.9,2530.8,7.418009]
[1748875302381,2.02,2530.9,2530.8,11.833009]
[1748875303695,2.02,2530.9,2530.8,7.418009]
[1748875303913,2.02,2530.9,2530.8,6.142009]
[1748875304201,5.97116361,2530.9,2530.8,1.276]
[1748875304513,6.74696361,2530.9,2530.8,5.69]
[1748875304721,6.79635531,2530.9,2530.8,1.276]
[1748875305359,7.74696361,2530.9,2530.8,1.276]
[1748875306599,3.7958,2530.9,2530.8,1.276]
[1748875307080,3.7958,2530.9,2530.5,3.9516975]
[1748875307400,7.74696361,2530.9,2530.8,4.413]
[1748875308142,3.7958,2530.9,2530.5,3.95176384]
[1748875308520,3.7958,2530.9,2530.6,9.63961895]
[1748875308720,3.7958,2530.9,2530.6,5.688]
[1748875309668,3.7958,2530.9,2530.7,3.9513806]
[1748875310747,3.02,2530.9,2530.8,3.95131974]